Workbook

Sheet beam design
A1: DESIGN OF BEAM
B2: Project name:
B3: Structure name
B4: Drawing refer to | J4: Date: | K4: =TODAY() -> 2025-02-18
B5: Prepared by: | F5: Checked by: | J5: Recommended by:
B7: Design parameters | H7: Size of beams
B8: Grade of Concrete | E8: fck | F8: 35 | H8: Depth | K8: d | L8: 1500 | M8: mm
B9: Steel grade | D9: Main bar | E9: fy | F9: 500 | G9: N/mm2 | H9: Breadth | K9: b | L9: 1000 | M9: mm
D10: Shear | E10: fs | F10: 250 | G10: N/mm2 | H10: Effective length of beam | K10: l | L10: 5.9 | M10: m
B11: Types of bars | E11: Deformed | H11: Types of beam | K11: Simply Supported
B12: Clear Cover | E12: dc | F12: 30 | G12: mm | H12: A. Serviceability Limit state
B13: Modulus of Elasticity of Steel | E13: Es | F13: 200000 | G13: N/mm2 | H13: A.1 Effective depth requirement | K13: de | L13: =de(K11,L8,F12,L10,E26) -> 1457.5 | M13: mm
B14: REINFORCEMENT DESIGN | AA14: Left section (Section-1) | AE14: Mid (Section-2) | AI14: Section-3
E15: Lelft | F15: Mid | G15: Right | AA15: Beam section | AE15: Beam section | AI15: Beam Section
B16: Moment | E16: 400 | F16: 2000 | G16: 300 | AA16: x | AB16: y | AE16: x | AF16: y | AI16: x | AJ16: y
B17: Shear force | E17: 1000 | F17: 15 | G17: 900 | AA17: 0 | AB17: 0 | AE17: =AA17 -> 0 | AF17: =AB17 -> 0 | AI17: =AE17 -> 0 | AJ17: =AF17 -> 0
A18: A.2 | B18: Limit state of strength | AA18: =AA17+L9 -> 1000 | AB18: =AB17 -> 0 | AE18: =AA18 -> 1000 | AF18: 0 | AI18: =AE18 -> 1000 | AJ18: 0
B19: Moment of resistance | E19: =MR(F8,F9,L9,L13,F12,F13) -> 9868.26342 | F19: =MR(F8,F9,L9,L13,F12,F13) -> 9868.26342 | G19: =MR(F8,F9,L9,L13,F12,F13) -> 9868.26342 | AA19: =AA18 -> 1000 | AB19: =AB18+L8 -> 1500 | AE19: 1000 | AF19: 1500 | AI19: 1000 | AJ19: 1500
B20: 1. Main reinforcement | AA20: =AA17 -> 0 | AB20: =AB19 -> 1500 | AE20: 0 | AF20: 1500 | AI20: 0 | AJ20: 1500
B21: Types of reinforcement | E21: =IF(E19<E16,"Doubly","Singly") -> Singly | F21: =IF(F19<F16,"Doubly","Singly") -> Singly | G21: =IF(G19<G16,"Doubly","Singly") -> Singly | AA21: =AA17 -> 0 | AB21: =AB17 -> 0 | AE21: 0 | AF21: 0 | AI21: 0 | AJ21: 0
B22: Tension reinforcement | E22: =Ast(E16,F8,F9,E23,L9,L13,F12,F13) -> 2477.75 | F22: =Ast(F16,F8,F9,E23,L9,L13,F12,F13) -> 3258.807407 | G22: =Ast(E16,F8,F9,E23,L9,L13,F12,F13) -> 2477.75 | AA22: Dimension | AE22: Dimension | AI22: Dimension
B23: Compression calculated | E23: =Acs(E16,F8,F9,L9,L13,F12,F13) -> 0 | F23: =Acs(F16,F8,F9,L9,L13,F12,F13) -> 0 | G23: =Acs(G16,F8,F9,L9,L13,F12,F13) -> 0 | AA23: =AA17 -> 0 | AB23: =AB19+100 -> 1600 | AE23: =AA23 -> 0 | AF23: =AB23 -> 1600 | AI23: =AE23 -> 0 | AJ23: =AF23 -> 1600
B24: Revised Area of compression reinforcement | E24: =IF(E23<50%*E22,50%*E22,E23) -> 1238.875 | F24: =IF(F23<50%*F22,50%*F22,F23) -> 1629.403704 | G24: 1238.875 | AA24: =AA18 -> 1000 | AB24: =AB23 -> 1600 | AE24: =AA24 -> 1000 | AF24: 1600 | AI24: =AE24 -> 1000 | AJ24: 1600
B25: Reinforcement Provided | AA25: =AA18+100 -> 1100 | AB25: =AB17 -> 0 | AE25: 1100 | AF25: 0 | AI25: 1100 | AJ25: 0
B26: Tension reinforcement | D26: Dia | E26: 25 | F26: 25 | G26: 25 | AA26: =AA25 -> 1100 | AB26: =AB19 -> 1500 | AE26: 1100 | AF26: 1500 | AI26: 1100 | AJ26: 1500
D27: Number | E27: =IF(ROUNDUP(E22/(PI()*E26^2/4),5)<=2,2,ROUNDUP(E22/(PI()*E26^2/4),0)) -> 6 | F27: =IF(ROUNDUP(F22/(PI()*F26^2/4),5)<=2,2,ROUNDUP(F22/(PI()*F26^2/4),0)) -> 7 | G27: 6 | AA27: Tension reinforcement | AE27: Tension reinforcement | AI27: Tension reinforcement
D28: Area | E28: =PI()*E26^2/4*E27 -> 2945.243113 | F28: =PI()*F26^2/4*F27 -> 3436.116965 | G28: 2945.243113 | AA28: First rebar | AB28: =F12+E35+E26/2 -> 52.5 | AC28: mm | AE28: First rebar | AF28: =AB28 -> 52.5 | AI28: First rebar | AJ28: =AF28 -> 52.5
D29: Percentage | E29: =E28/($L$9*$L$13)*100 -> 0.2020749992 | F29: =F28/($L$9*$L$13)*100 -> 0.2357541657 | G29: 0.2020749992 | AA29: Spacing | AB29: 40 | AC29: mm | AE29: Spacing | AI29: Spacing
B30: Compression reinforcement | D30: Diameter | E30: 25 | F30: 25 | G30: 25 | AA30: Nos | AB30: x | AC30: y | AE30: Nos | AF30: x | AG30: y | AI30: Nos | AJ30: x | AK30: y
D31: Number | E31: =IF(ROUNDUP(E24/(PI()*E30^2/4),5)<=2,2,ROUNDUP(E24/(PI()*E30^2/4),0)) -> 3 | F31: =IF(ROUNDUP(F24/(PI()*F30^2/4),5)<=2,2,ROUNDUP(F24/(PI()*F30^2/4),0)) -> 4 | G31: 3 | AA31: 1 | AB31: 52.5 | AC31: 1447.5 | AE31: 1 | AF31: 52.5 | AG31: 52.5 | AI31: 1 | AJ31: 52.5 | AK31: 1447.5
D32: Area | E32: =PI()*E30^2/4*E31 -> 1472.621556 | F32: =PI()*F30^2/4*F31 -> 1963.495408 | G32: =PI()*G30^2/4*G31 -> 1472.621556 | AA32: 2 | AB32: 231.5 | AC32: 1447.5 | AE32: 2 | AF32: 201.6666667 | AG32: 52.5 | AI32: 2 | AJ32: 231.5 | AK32: 1447.5
D33: Percentage | E33: =E32/($L$9*$L$13)*100 -> 0.1010374996 | F33: =F32/($L$9*$L$13)*100 -> 0.1347166661 | G33: =G32/($L$9*$L$13)*100 -> 0.1010374996 | AA33: 3 | AB33: 410.5 | AC33: 1447.5 | AE33: 3 | AF33: 350.8333333 | AG33: 52.5 | AI33: 3 | AJ33: 410.5 | AK33: 1447.5
B34: 2. Shear reinforcement | K34: Print report--> | L34: Skip print | AA34: 4 | AB34: 589.5 | AC34: 1447.5 | AE34: 4 | AF34: 500 | AG34: 52.5 | AI34: 4 | AJ34: 589.5 | AK34: 1447.5
B35: Diameter of reinforcement | E35: 10 | F35: 10 | G35: 10 | AA35: 5 | AB35: 768.5 | AC35: 1447.5 | AE35: 5 | AF35: 649.1666667 | AG35: 52.5 | AI35: 5 | AJ35: 768.5 | AK35: 1447.5
B36: No. of legs | E36: 3 | F36: 3 | G36: 3 | AA36: 6 | AB36: 947.5 | AC36: 1447.5 | AE36: 6 | AF36: 798.3333333 | AG36: 52.5 | AI36: 6 | AJ36: 947.5 | AK36: 1447.5
B37: Area of rebar | E37: =E36*PI()*E35^2/4 -> 235.619449 | F37: =F36*PI()*F35^2/4 -> 235.619449 | G37: =G36*PI()*G35^2/4 -> 235.619449 | AE37: 7 | AF37: 947.5 | AG37: 52.5
B38: Spacing | E38: =ROUNDDOWN(space(E17,F8,F10,E28,L9,L13,E37),0) -> 147 | F38: =ROUNDDOWN(space(F17,F8,F10,F28,L9,L13,F37),0) -> 128 | G38: =ROUNDDOWN(space(G17,F8,F10,G28,L9,L13,G37),0) -> 183
A40: A.3 | B40: 3. Development length | AA40: Compression reinforcement | AE40: Compression reinforcement | AI40: Compression reinforcement
B41: Development length for Tension rebar | E41: Ldt | F41: =TBlength(E11,F8,F9,E26) -> 1148.897059 | G41: mm | AA41: Nos | AB41: x | AC41: y | AE41: Nos | AF41: x | AG41: y | AI41: Nos | AJ41: x | AK41: y
B42: Development length for Compression rebar | E42: Ldc | F42: =CBlength(E11,F8,F9,E30) -> 919.1176471 | G42: mm | AA42: 1 | AB42: 52.5 | AC42: 52.5 | AE42: 1 | AF42: 52.5 | AG42: 1447.5 | AI42: 1 | AJ42: 52.5 | AK42: 52.5
AA43: 2 | AB43: 500 | AC43: 52.5 | AE43: 2 | AF43: 350.8333333 | AG43: 1447.5 | AI43: 2 | AJ43: 500 | AK43: 52.5
AA44: 3 | AB44: 947.5 | AC44: 52.5 | AE44: 3 | AF44: 649.1666667 | AG44: 1447.5 | AI44: 3 | AJ44: 947.5 | AK44: 52.5
C45: =CONCATENATE(E27,"-",E26," mm dia ") -> 6-25 mm dia | E45: =CONCATENATE(E36,"L-",E35," mm dia @ ",E38," mm c/s") -> 3L-10 mm dia @ 147 mm c/s | I45: =CONCATENATE(G27,"-",G26," mm dia ") -> 6-25 mm dia | AE45: 4 | AF45: 947.5 | AG45: 1447.5
J48: =CONCATENATE(G36,"L-",G35," mm dia @ ",G38," mm c/c") -> 3L-10 mm dia @ 183 mm c/c
AA52: Stirrups | AI52: Stirrups
D53: =CONCATENATE(F27,"-",F26," mm dia") -> 7-25 mm dia | AA53: Cover | AB53: =F12+E35/2 -> 35 | AC53: mm | AE53: Cover | AF53: =AB53 -> 35 | AI53: Cover | AJ53: =AF53 -> 35
G54: =CONCATENATE(G36,"L-",G35,"mm dia @",G38," mm c/c") -> 3L-10mm dia @183 mm c/c | AB54: x | AC54: y | AF54: x | AG54: y | AJ54: x | AK54: y
AA55: 1 | AB55: =AA17+AB53 -> 35 | AC55: =AB17+AB53 -> 35 | AE55: 1 | AF55: =AB55 -> 35 | AG55: =AC55 -> 35 | AI55: 1 | AJ55: =AF55 -> 35 | AK55: =AG55 -> 35
AA56: 2 | AB56: =L9-AB53 -> 965 | AC56: =AC55 -> 35 | AE56: 2 | AF56: =AB56 -> 965 | AG56: 35 | AI56: 2 | AJ56: =AF56 -> 965 | AK56: 35
AA57: 3 | AB57: =AB56 -> 965 | AC57: =L8-AB53 -> 1465 | AE57: 3 | AF57: 965 | AG57: 1465 | AI57: 3 | AJ57: 965 | AK57: 1465
AA58: 4 | AB58: =AB55 -> 35 | AC58: =AC57 -> 1465 | AE58: 4 | AF58: 35 | AG58: 1465 | AI58: 4 | AJ58: 35 | AK58: 1465
AA59: 5 | AB59: =AB55 -> 35 | AC59: =AC55 -> 35 | AE59: 5 | AF59: 35 | AG59: 35 | AI59: 5 | AJ59: 35 | AK59: 35
AI107: 1 | AJ107: 52.5 | AK107: 52.5
AI108: 2 | AJ108: 500 | AK108: 52.5
AI109: 3 | AJ109: 947.5 | AK109: 52.5
